fUST/lending_fUST_20240427
["ID","MTS","AMOUNT","RATE_DAILY","PERIOD"]
[323736003,1714224295582,-1482.53228805,0.00034,60]
[323736004,1714224295606,-2228.46,0.0003452,28]
[323736005,1714224295628,-1271.37232962,0.00034728,12]
[323736006,1714224295650,-159.09380235,0.00035,30]
[323736007,1714224295674,-208.20057477,0.00035,15]
[323736008,1714224295697,-564.41061078,0.00035,30]
[323736009,1714224295719,-1841.70172047,0.00035,30]
[323736010,1714224295741,-218.0,0.00035,10]
[323736011,1714224295763,-1365.2,0.00035,30]
[323736012,1714224295785,-202.0,0.00035,60]
[323736013,1714224295811,-1363.2454219,0.00035,120]
[323736014,1714224295834,-160.0,0.00035497,10]
[323736015,1714224295859,-2228.46,0.00035616,30]
[323736016,1714224295883,-2995.339146,0.00035616,120]
[323736017,1714224295907,-160.0,0.00035695,11]
[323736018,1714224295932,-160.0,0.00035893,12]
[323736019,1714224295956,-160.0,0.0003609,13]
[323736020,1714224295980,-160.0,0.00036288,14]
[323736021,1714224296005,-160.0,0.00036486,15]
[323736022,1714224296029,-160.0,0.00036683,16]
[323736023,1714224296053,-2228.46,0.00036712,32]
[323736024,1714224296076,-200.0,0.00036729,120]
[323736025,1714224296099,-160.0,0.00036881,17]
[323736026,1714224296121,-160.0,0.00037078,18]
[323736027,1714224296144,-160.0,0.00037276,19]
[323736028,1714224296166,-160.0,0.00037474,20]
[323736029,1714224296189,-3000.0,0.000375,32]
[323736030,1714224296211,-3000.0,0.0003751,32]
[323736031,1714224296233,-3000.0,0.0003752,32]
[323736032,1714224296255,-3000.0,0.0003753,32]
[323736033,1714224296277,-3000.0,0.0003754,32]
[323736034,1714224296303,-3000.0,0.0003755,32]
[323736035,1714224296325,-3000.0,0.0003756,32]
[323736036,1714224296347,-3000.0,0.0003757,32]
[323736037,1714224296370,-3000.0,0.0003758,32]
[323736038,1714224296393,-3000.0,0.0003759,32]
[323736039,1714224296415,-3000.0,0.000376,32]
[323736040,1714224296439,-3000.0,0.0003761,32]
[323736041,1714224296463,-3000.0,0.0003762,32]
[323736042,1714224296485,-3000.0,0.0003763,32]
[323736043,1714224296507,-3000.0,0.0003764,32]
[323736044,1714224296530,-3000.0,0.0003765,32]
[323736045,1714224296555,-3000.0,0.0003766,32]
[323736046,1714224296578,-3000.0,0.0003767,32]
[323736047,1714224296601,-160.0,0.00037671,21]
[323736048,1714224296624,-3000.0,0.0003768,32]
[323736049,1714224296646,-3000.0,0.0003769,32]
[323736050,1714224296669,-3000.0,0.000377,32]
[323736051,1714224296692,-3000.0,0.0003771,32]
[323736052,1714224296715,-500.0,0.0003772,30]
[323736053,1714224296738,-231.20906612,0.0003772,30]
[323736054,1714224296760,-3000.0,0.0003772,32]
[323736055,1714224296783,-3000.0,0.0003773,32]
[323736056,1714224296810,-3000.0,0.0003774,32]
[323736057,1714224296832,-3000.0,0.0003775,32]
[323736058,1714224296857,-3000.0,0.0003776,33]
[323736059,1714224296881,-3000.0,0.0003777,33]
[323736060,1714224296906,-3000.0,0.0003778,33]
[323736061,1714224296931,-3000.0,0.0003779,33]
[323736062,1714224296954,-3000.0,0.000378,33]
[323736063,1714224296977,-2228.46,0.00037808,34]
[323736064,1714224297000,-3000.0,0.0003781,33]
[323736065,1714224297024,-2401.40691272,0.0003782,33]
[323736066,1714224300476,-598.59308728,0.0003782,33]
[323736067,1714224300500,-3000.0,0.0003783,33]
[323736068,1714224300524,-3000.0,0.0003784,33]
[323736069,1714224300551,-3000.0,0.0003785,33]
[323736070,1714224300574,-3000.0,0.0003786,33]
[323736071,1714224300597,-160.0,0.00037869,22]
[323736072,1714224300620,-3000.0,0.0003787,33]
[323736073,1714224300643,-3000.0,0.0003788,33]
[323736074,1714224300666,-3000.0,0.0003789,33]
[323736075,1714224300691,-3000.0,0.000379,33]
[323736076,1714224300715,-3000.0,0.0003791,33]
[323736077,1714224300738,-3000.0,0.0003792,33]
[323736078,1714224300761,-5845.786426,0.0003793,33]
[323736079,1714224300784,-160.0,0.00038067,23]
[323736080,1714224300810,-160.0,0.00038264,24]
[323736081,1714224300834,-200.0,0.0003835,120]
[323736082,1714224300857,-1211.59,0.00038356,120]
[323736083,1714224300884,-1211.59,0.00038356,120]
[323736084,1714224300910,-1211.59,0.00038356,120]
[323736085,1714224300933,-1211.59,0.00038356,120]
[323736086,1714224300961,-1000.0,0.00038356,30]
[323736087,1714224300986,-1211.59,0.00038356,120]
[323736088,1714224301009,-1000.0,0.00038356,30]
[323736089,1714224301033,-1000.0,0.00038356,30]
[323736090,1714224301057,-1000.0,0.00038356,30]
[323736091,1714224301081,-1000.0,0.00038356,30]
[323736092,1714224301106,-1000.0,0.00038356,30]
[323736093,1714224301130,-1000.0,0.00038356,30]
[323736094,1714224301155,-1000.0,0.00038356,30]
[323736095,1714224301178,-1000.0,0.00038356,30]
[323736096,1714224301202,-1211.59,0.00038356,120]
[323736097,1714224301226,-1000.0,0.00038356,30]
[323736098,1714224301250,-1211.59,0.00038356,120]
[323736099,1714224301274,-217.86669954,0.00038356,30]
[323736100,1714224301299,-1211.59,0.00038356,120]
[323736101,1714224301322,-1211.59,0.00038356,120]
[323736102,1714224301345,-1211.59,0.00038356,120]
[323736103,1714224301370,-1211.59,0.00038356,120]
[323736104,1714224301393,-1211.59,0.00038356,120]
[323736105,1714224301417,-1211.59,0.00038356,120]
[323736106,1714224301439,-1211.59,0.00038356,120]
[323736107,1714224301462,-1211.59,0.00038356,120]
[323736108,1714224301485,-1211.59,0.00038356,120]
[323736109,1714224301509,-1211.59,0.00038356,120]
[323736110,1714224301531,-1211.59,0.00038356,120]
[323736111,1714224301556,-1211.59,0.00038356,120]
[323736112,1714224301579,-1211.59,0.00038356,120]
[323736113,1714224301603,-1211.59,0.00038356,120]
[323736114,1714224301626,-1211.59,0.00038356,120]
[323736115,1714224301649,-1211.59,0.00038356,120]
[323736116,1714224301671,-1211.65885929,0.00038356,120]
[323736117,1714224301695,-160.0,0.00038462,25]
[323736118,1714224301717,-160.0,0.00038659,26]
[323736119,1714224301741,-629.97066416,0.000388,30]
[323736120,1714224301764,-160.0,0.00038857,27]
[323736121,1714224301786,-2228.46,0.00038904,36]
[323736122,1714224301812,-2042.96,0.00039,32]
[323736123,1714224301835,-403.099999,0.00039,12]
[323736124,1714224301863,-160.0,0.00039055,28]
[323736125,1714224301888,-160.0,0.00039252,29]
[323736126,1714224301913,-999.0,0.00039397,30]
[323736127,1714224301935,-999.0,0.00039397,30]
[323736128,1714224301960,-999.0,0.00039397,30]
[323736129,1714224301985,-999.0,0.00039397,30]
[323736130,1714224302008,-999.0,0.00039397,30]
[323736131,1714224302031,-999.0,0.00039397,30]
[323736132,1714224302055,-999.0,0.00039397,30]
[323736133,1714224302079,-999.0,0.00039397,30]
[323736134,1714224302101,-999.0,0.00039397,30]
[323736135,1714224302227,-999.0,0.00039397,30]
[323736136,1714224302258,-999.0,0.00039397,30]
[323736137,1714224302281,-999.0,0.00039397,30]
[323736138,1714224302305,-999.0,0.00039397,30]
[323736139,1714224302327,-999.0,0.00039397,30]
[323736140,1714224302350,-999.0,0.00039397,30]
[323736141,1714224302372,-999.0,0.00039397,30]
[323736142,1714224302394,-999.0,0.00039397,30]
[323736143,1714224302417,-215.27634286,0.00039397,30]
[323736144,1714224302440,-160.0,0.0003945,30]
[323736145,1714224302462,-160.0,0.00039648,31]
[323736146,1714224302485,-160.0,0.00039845,32]
[323736147,1714224302508,-569.46944734,0.0004,30]
[323736148,1714224302530,-2631.59399699,0.0004,30]
[323736149,1714224302555,-210.09817641,0.0004,120]
[323736150,1714224302577,-300.0,0.0004,14]
[323736151,1714224302599,-2500.0,0.0004,120]
[323736152,1714224302621,-68521.0,0.0004,30]
[323736153,1714224302645,-3557.96,0.0004,15]
[323736154,1714224302667,-2228.46,0.0004,38]
[323736155,1714224302690,-160.0,0.00040043,33]
[323736156,1714224302712,-2347.64028377,0.00040185,30]
[323736157,1714224302737,-2411.28280509,0.00040186,30]
[323736158,1714224302761,-160.0,0.00040241,34]
[323736159,1714224302785,-185.36405554,0.00040248,30]
[323736160,1714224302814,-397.57237085,0.00040263,30]
[323736161,1714224302839,-2347.64028377,0.00040297,30]
[323736162,1714224302862,-185.36405554,0.00040318,30]
[323736163,1714224302885,-2411.28280509,0.00040331,30]
[323736164,1714224302907,-192.581771,0.00040342,30]
[323736165,1714224302929,-2347.64028377,0.0004036,30]
[323736166,1714224302953,-9023.09,0.000404,30]
[323736167,1714224302979,-160.0,0.00040438,35]
[323736168,1714224303003,-397.57237085,0.00040529,30]
[323736169,1714224303026,-397.57237085,0.00040541,30]
[323736170,1714224303050,-185.36405554,0.00040582,30]
[323736171,1714224303073,-2411.28280509,0.0004065,30]
[323736172,1714224303098,-397.57237085,0.00040693,30]
[323736173,1714224303124,-275.96106052,0.00040723,30]
[323736174,1714224303147,-192.581771,0.00040723,30]
[323736175,1714224303170,-397.57237085,0.00040784,30]
[323736176,1714224303193,-1688.0,0.000408,120]
[323736177,1714224303218,-275.96106052,0.00040836,30]
[323736178,1714224303241,-185.36405554,0.00040842,30]
[323736179,1714224303265,-397.57237085,0.00040842,30]
[323736180,1714224303288,-763.0,0.000409,16]
[323736181,1714224303315,-763.0,0.000409,16]
[323736182,1714224303338,-763.0,0.000409,16]
[323736183,1714224303361,-192.581771,0.0004093,30]
[323736184,1714224303383,-2411.28280509,0.00040949,30]
[323736185,1714224303406,-151.05141862,0.00040949,30]
[323736186,1714224303429,-275.96106052,0.00040952,30]
[323736187,1714224303451,-2411.28280509,0.00040953,30]
[323736188,1714224303474,-397.57237085,0.00040956,30]
[323736189,1714224303496,-275.96106052,0.00040965,30]
[323736190,1714224303518,-192.581771,0.00040992,30]
[323736191,1714224303540,-81149.06586156,0.00041,90]
[323736192,1714224304819,-207509.079997,0.00032803,14]
[323736193,1714224304842,-177.75,0.00032803,30]
[323736194,1714224304864,-1191.93324811,0.00032803,14]
[323736195,1714224304887,-224.60303664,0.00032803,10]
[323736196,1714224304910,-1022.8347048,0.00032803,10]
[323736197,1714224304934,-2505.43586264,0.00032803,120]
[323736198,1714224305219,150.5,0.0002412,35]
[323736199,1714224305301,395.0,0.0002412,35]
[323736200,1714224305326,207.58,0.0002411,35]
[323736201,1714224305367,150.5,0.0002412,35]
[323736202,1714224305406,395.0,0.0002411,35]
[323736203,1714224305442,235.1,0.0002411,35]
[323736204,1714224305673,395.0,0.000241,35]
[323736205,1714224305870,1780.0,0.0002412,35]
[323736206,1714224306061,4263.04666336,0.00012696,2]
[323736207,1714224306092,8500.0,0.00012696,2]
[323736208,1714224306736,1780.0,0.0002411,35]
[323736209,1714224307757,1780.0,0.000241,35]
[323736210,1714224318519,-395.0,0.000279,35]
[323736211,1714224318543,-1780.0,0.000279,35]
[323736212,1714224318570,-395.0,0.0002791,35]
[323736213,1714224318592,-1780.0,0.0002791,35]
[323736214,1714224318615,-395.0,0.0002792,35]
[323736215,1714224318750,-1780.0,0.0002792,35]
[323736216,1714224318857,-395.0,0.0002898,35]
[323736217,1714224318881,-1780.0,0.0002898,35]
[323736218,1714224318906,-395.0,0.0002899,35]
[323736219,1714224318930,-1780.0,0.0002899,35]
[323736220,1714224319060,-400.9,0.0003118,35]
[323736221,1714224319085,-1782.84,0.0003118,35]
[323736222,1714224319109,-395.0,0.0003119,35]
[323736223,1714224319132,-1780.0,0.0003119,35]
[323736224,1714224319251,-154.86062544,0.00035,15]
[323736225,1714224319279,-214851.76819514,0.00041,90]
[323736226,1714224319304,-69759.63117942,0.00041,90]
[323736227,1714224322131,-32661.18444289,0.00041,90]
[323736228,1714224322156,-500.2492135,0.00041,120]
[323736229,1714224322180,-300.0,0.00041,15]
[323736230,1714224322203,-150.0,0.00041,15]
[323736231,1714224322226,-381.0,0.00041,16]
[323736232,1714224322250,-2411.28280509,0.00041024,30]
[323736233,1714224322273,-2411.28280509,0.00041038,30]
[323736234,1714224322296,-192.581771,0.0004107,30]
[323736235,1714224322321,-2411.28280509,0.00041077,30]
[323736236,1714224322343,-500.0,0.00041095,120]
[323736237,1714224322365,-500.0,0.00041095,120]
[323736238,1714224322388,-500.0,0.00041095,120]
[323736239,1714224322410,-500.0,0.00041095,120]
[323736240,1714224322433,-500.0,0.00041095,120]
[323736241,1714224322455,-500.0,0.00041095,120]
[323736242,1714224322477,-500.0,0.00041095,120]
[323736243,1714224322500,-500.0,0.00041095,120]
[323736244,1714224322522,-500.0,0.00041095,120]
[323736245,1714224322544,-500.0,0.00041095,120]
[323736246,1714224322568,-500.0,0.00041095,120]
[323736247,1714224322590,-500.0,0.00041095,120]
[323736248,1714224322613,-410.31593009,0.00041095,120]
[323736249,1714224322637,-2228.46,0.00041095,40]
[323736250,1714224322660,-500.0,0.00041096,31]
[323736251,1714224322782,-500.0,0.00041096,31]
[323736252,1714224322807,-500.0,0.00041096,31]
[323736253,1714224322834,-500.0,0.00041096,31]
[323736254,1714224322858,-500.0,0.00041096,31]
[323736255,1714224322882,-500.0,0.00041096,31]
[323736256,1714224322905,-500.0,0.00041096,31]
[323736257,1714224322931,-500.0,0.00041096,31]
[323736258,1714224322956,-500.0,0.00041096,31]
[323736259,1714224322981,-500.0,0.00041096,31]
[323736260,1714224323007,-500.0,0.00041096,31]
[323736261,1714224323032,-500.0,0.00041096,31]
[323736262,1714224323058,-500.0,0.00041096,31]
[323736263,1714224323082,-500.0,0.00041096,31]
[323736264,1714224323105,-500.0,0.00041096,31]
[323736265,1714224323131,-500.0,0.00041096,31]
[323736266,1714224323158,-500.0,0.00041096,31]
[323736267,1714224323183,-500.0,0.00041096,31]
[323736268,1714224323210,-500.0,0.00041096,31]
[323736269,1714224323234,-500.0,0.00041096,31]
[323736270,1714224323257,-500.0,0.00041096,31]
[323736271,1714224323283,-500.0,0.00041096,31]
[323736272,1714224323311,-500.0,0.00041096,31]
[323736273,1714224323339,-500.0,0.00041096,31]
[323736274,1714224323368,-500.0,0.00041096,31]
[323736275,1714224323391,-500.0,0.00041096,31]
[323736276,1714224323414,-500.0,0.00041096,31]
[323736277,1714224323437,-480.03100132,0.00041096,31]
[323736278,1714224323460,-500.0,0.00041096,31]
[323736279,1714224323483,-500.0,0.00041096,31]
[323736280,1714224323508,-500.0,0.00041096,31]
[323736281,1714224323531,-500.0,0.00041096,31]
[323736282,1714224323554,-500.0,0.00041096,31]
[323736283,1714224323577,-286.73900308,0.00041096,31]
[323736284,1714224323600,-500.0,0.00041096,31]
[323736285,1714224323622,-500.0,0.00041096,31]
[323736286,1714224323645,-500.0,0.00041096,31]
[323736287,1714224323668,-500.0,0.00041096,31]
[323736288,1714224323691,-500.0,0.00041096,31]
[323736289,1714224323714,-500.0,0.00041096,31]
[323736290,1714224323737,-500.0,0.00041096,31]
[323736291,1714224323759,-500.0,0.00041096,31]
[323736292,1714224323782,-500.0,0.00041096,31]
[323736293,1714224323807,-500.0,0.00041096,31]
[323736294,1714224323833,-500.0,0.00041096,31]
[323736295,1714224323857,-639.63579853,0.00041096,31]
[323736296,1714224323880,-500.0,0.00041096,31]
[323736297,1714224323905,-500.0,0.00041096,31]
[323736298,1714224323929,-500.0,0.00041096,31]
[323736299,1714224323953,-500.0,0.00041096,31]
[323736300,1714224323976,-274.12962794,0.00041096,31]
[323736301,1714224324000,-500.0,0.00041096,31]
[323736302,1714224324024,-500.0,0.00041096,31]
[323736303,1714224324047,-500.0,0.00041096,31]
[323736304,1714224324071,-500.0,0.00041096,31]
[323736305,1714224324094,-500.0,0.00041096,31]
[323736306,1714224324119,-500.0,0.00041096,31]
[323736307,1714224324145,-500.0,0.00041096,31]
[323736308,1714224324167,-500.0,0.00041096,31]
[323736309,1714224324189,-500.0,0.00041096,31]
[323736310,1714224324212,-500.0,0.00041096,31]
[323736311,1714224324233,-500.0,0.00041096,31]
[323736312,1714224324352,-500.0,0.00041096,31]
[323736313,1714224324376,-500.0,0.00041096,31]
[323736314,1714224324399,-500.0,0.00041096,31]
[323736315,1714224324424,-500.0,0.00041096,31]
[323736316,1714224324447,-500.0,0.00041096,31]
[323736317,1714224324470,-500.0,0.00041096,31]
[323736318,1714224324494,-500.0,0.00041096,31]
[323736319,1714224324519,-500.0,0.00041096,31]
[323736320,1714224324542,-500.0,0.00041096,31]
[323736321,1714224324566,-500.0,0.00041096,31]
[323736322,1714224324589,-500.0,0.00041096,31]
[323736323,1714224324612,-500.0,0.00041096,31]
[323736324,1714224324634,-500.0,0.00041096,31]
[323736325,1714224324657,-500.0,0.00041096,31]
[323736326,1714224324680,-500.0,0.00041096,31]
[323736327,1714224324702,-500.0,0.00041096,31]
[323736328,1714224324725,-500.0,0.00041096,31]
[323736329,1714224324747,-500.0,0.00041096,31]
[323736330,1714224324770,-500.0,0.00041096,31]
[323736331,1714224324792,-500.0,0.00041096,31]
[323736332,1714224324819,-500.0,0.00041096,31]
[323736333,1714224324842,-500.0,0.00041096,31]
[323736334,1714224324865,-500.0,0.00041096,31]
[323736335,1714224324887,-500.0,0.00041096,31]
[323736336,1714224324912,-500.0,0.00041096,31]
[323736337,1714224324935,-500.0,0.00041096,31]
[323736338,1714224324958,-500.0,0.00041096,31]
[323736339,1714224324982,-300.0,0.00041096,31]
[323736340,1714224325007,-500.0,0.00041096,31]
[323736341,1714224325030,-500.0,0.00041096,31]
[323736342,1714224325054,-500.0,0.00041096,31]
[323736343,1714224325079,-500.0,0.00041096,31]
[323736344,1714224325103,-500.0,0.00041096,31]
[323736345,1714224325126,-200.0,0.00041096,31]
[323736346,1714224325150,-500.0,0.00041096,31]
[323736347,1714224325173,-500.0,0.00041096,31]
[323736348,1714224325197,-500.0,0.00041096,31]
[323736349,1714224325223,-500.0,0.00041096,31]
[323736350,1714224325247,-500.0,0.00041096,31]
[323736351,1714224325271,-882.72289878,0.00041096,31]
[323736352,1714224325295,-882.72289878,0.00041096,31]
[323736353,1714224325319,-882.72289878,0.00041096,31]
[323736354,1714224325342,-500.0,0.00041096,31]
[323736355,1714224325366,-882.72289878,0.00041096,31]
[323736356,1714224325389,-500.0,0.00041096,31]
[323736357,1714224325413,-882.72289878,0.00041096,31]
[323736358,1714224325437,-882.72289878,0.00041096,31]
[323736359,1714224325461,-500.0,0.00041096,31]
[323736360,1714224325486,-882.72289878,0.00041096,31]
[323736361,1714224325511,-882.72289878,0.00041096,31]
[323736362,1714224325534,-882.72289878,0.00041096,31]
[323736363,1714224325557,-882.72289878,0.00041096,31]
[323736364,1714224325580,-882.72289878,0.00041096,31]
[323736365,1714224325603,-882.72289878,0.00041096,31]
[323736366,1714224325626,-882.72289878,0.00041096,31]
[323736367,1714224325649,-882.72289878,0.00041096,31]
[323736368,1714224325672,-882.72289878,0.00041096,31]
[323736369,1714224325695,-930.0116255,0.00041096,31]
[323736370,1714224325718,-882.72289878,0.00041096,31]
[323736371,1714224325742,-882.72289878,0.00041096,31]
[323736372,1714224325905,-882.72289878,0.00041096,31]
[323736373,1714224325933,-930.0116255,0.00041096,31]
[323736374,1714224325956,-930.0116255,0.00041096,31]
[323736375,1714224325981,-882.72289878,0.00041096,31]
[323736376,1714224326006,-882.72289878,0.00041096,31]
[323736377,1714224326029,-882.72289878,0.00041096,31]
[323736378,1714224326054,-882.72289878,0.00041096,31]
[323736379,1714224326086,-930.0116255,0.00041096,31]
[323736380,1714224326113,-882.72289878,0.00041096,31]
[323736381,1714224326140,-930.0116255,0.00041096,31]
[323736382,1714224326165,-882.72289878,0.00041096,31]
[323736383,1714224326189,-882.72289878,0.00041096,31]
[323736384,1714224326214,-930.0116255,0.00041096,31]
[323736385,1714224326237,-882.72289878,0.00041096,31]
[323736386,1714224326261,-882.72289878,0.00041096,31]
[323736387,1714224326285,-882.72289878,0.00041096,31]
[323736388,1714224326309,-882.72289878,0.00041096,31]
[323736389,1714224326338,-882.72289878,0.00041096,31]
[323736390,1714224326361,-930.0116255,0.00041096,31]
[323736391,1714224326383,-882.72289878,0.00041096,31]
[323736392,1714224326406,-930.0116255,0.00041096,31]
[323736393,1714224326431,-882.72289878,0.00041096,31]
[323736394,1714224326454,-930.0116255,0.00041096,31]
[323736395,1714224326477,-930.0116255,0.00041096,31]
[323736396,1714224326501,-930.0116255,0.00041096,31]
[323736397,1714224326525,-882.72289878,0.00041096,31]
[323736398,1714224326548,-882.72289878,0.00041096,31]
[323736399,1714224326574,-930.0116255,0.00041096,31]
[323736400,1714224326597,-930.0116255,0.00041096,31]
[323736401,1714224326621,-930.0116255,0.00041096,31]
[323736402,1714224326645,-882.72289878,0.00041096,31]
[323736403,1714224326668,-930.0116255,0.00041096,31]
[323736404,1714224326692,-930.0116255,0.00041096,31]
[323736405,1714224326715,-871.20912184,0.00041096,31]
[323736406,1714224326738,-871.20912184,0.00041096,31]
[323736407,1714224326761,-871.20912184,0.00041096,31]
[323736408,1714224326785,-871.20912184,0.00041096,31]
[323736409,1714224326812,-871.20912184,0.00041096,31]
[323736410,1714224326837,-871.20912184,0.00041096,31]
[323736411,1714224326860,-871.20912184,0.00041096,31]
[323736412,1714224326883,-871.20912184,0.00041096,31]
[323736413,1714224326907,-871.20912184,0.00041096,31]
[323736414,1714224326931,-871.20912184,0.00041096,31]
[323736415,1714224326956,-871.20912184,0.00041096,31]
[323736416,1714224326982,-954.18141915,0.00041096,31]
[323736417,1714224327006,-871.20912184,0.00041096,31]
[323736418,1714224327030,-954.18141915,0.00041096,31]
[323736419,1714224327054,-871.20912184,0.00041096,31]
[323736420,1714224327079,-871.20912184,0.00041096,31]
[323736421,1714224327102,-871.20912184,0.00041096,31]
[323736422,1714224327126,-954.18141915,0.00041096,31]
[323736423,1714224327154,-871.20912184,0.00041096,31]
[323736424,1714224327177,-954.18141915,0.00041096,31]
[323736425,1714224327202,-954.18141915,0.00041096,31]
[323736426,1714224327227,-871.20912184,0.00041096,31]
[323736427,1714224327251,-871.20912184,0.00041096,31]
[323736428,1714224327275,-954.18141915,0.00041096,31]
[323736429,1714224327404,-954.18141915,0.00041096,31]
[323736430,1714224327429,-871.20912184,0.00041096,31]
[323736431,1714224327453,-871.20912184,0.00041096,31]
[323736432,1714224327477,-871.20912184,0.00041096,31]
[323736433,1714224327501,-954.18141915,0.00041096,31]
[323736434,1714224327525,-871.20912184,0.00041096,31]
[323736435,1714224327549,-954.18141915,0.00041096,31]
[323736436,1714224327576,-871.20912177,0.00041096,31]
[323736437,1714224327599,-192.581771,0.00041122,30]
[323736438,1714224327622,-185.36405554,0.00041143,30]
[323736439,1714224327645,-275.96106052,0.00041146,30]
[323736440,1714224327668,-192.581771,0.00041153,30]
[323736441,1714224327691,-2411.28280509,0.00041166,30]
[323736442,1714224327715,-275.96106052,0.00041226,30]
[323736443,1714224327738,-153.32395488,0.00041241,38]
[323736444,1714224327762,-2347.64028377,0.0004127,30]
[323736445,1714224327785,-2411.28280509,0.00041305,30]
[323736446,1714224327811,-2995.339146,0.00041553,120]
[323736447,1714224327839,-185.36405554,0.00041557,30]
[323736448,1714224327861,-185.36405554,0.00041574,30]
[323736449,1714224327885,-153.32395492,0.00041741,40]
[323736450,1714224327911,-2347.64028377,0.00041772,30]
[323736451,1714224327934,-192.581771,0.00041872,30]
[323736452,1714224327957,-192.581771,0.00041942,30]
[323736453,1714224327980,-397.57237085,0.00041962,30]
[323736454,1714224328002,-444.3278817,0.00042,120]
[323736455,1714224328029,-1500.0,0.00042,120]
[323736456,1714224328052,-300.0,0.00042,16]
[323736457,1714224328075,-2411.28280509,0.00042041,30]
[323736458,1714224328097,-185.36405554,0.00042099,30]
[323736459,1714224328121,-185.36405554,0.0004213,30]
[323736460,1714224328145,-2228.46,0.00042191,42]
[323736461,1714224328169,-2347.64028377,0.0004221,30]
[323736462,1714224328191,-153.32395492,0.00042241,42]
[323736463,1714224328214,-397.57237085,0.00042283,30]
[323736464,1714224328236,-192.581771,0.00042298,30]
[323736465,1714224328258,-397.57237085,0.00042346,30]
[323736466,1714224328282,-185.36405554,0.00042352,30]
[323736467,1714224328305,-2347.64028377,0.00042363,30]
[323736468,1714224328329,-185.36405554,0.00042367,30]
[323736469,1714224328352,-275.96106052,0.00042398,30]
[323736470,1714224328375,-1637.72236854,0.000424,120]
[323736471,1714224328398,-275.96106052,0.00042413,30]
[323736472,1714224328421,-2411.28280509,0.00042417,30]
[323736473,1714224328445,-397.57237085,0.00042456,30]
[323736474,1714224328470,-192.581771,0.00042481,30]
[323736475,1714224328493,-629.62943843,0.000425,120]
[323736476,1714224328516,-2411.28280509,0.00042504,30]
[323736477,1714224328539,-397.57237085,0.00042637,30]
[323736478,1714224328562,-263.04892522,0.0004266,30]
[323736479,1714224328586,-192.581771,0.0004268,30]
[323736480,1714224328609,-192.581771,0.00042696,30]
[323736481,1714224328632,-2347.64028377,0.00042715,30]
[323736482,1714224328655,-275.96106052,0.00042737,30]
[323736483,1714224328679,-153.32395492,0.00042741,45]
[323736484,1714224328701,-30000.0,0.00042786,120]
[323736485,1714224328824,-397.57237085,0.00042835,30]
[323736486,1714224328847,-185.36405554,0.00042838,30]
[323736487,1714224328870,-397.57237085,0.00042844,30]
[323736488,1714224328894,-275.96106052,0.00042873,30]
[323736489,1714224328917,-500.0,0.000429,42]
[323736490,1714224328941,-500.0,0.000429,42]
[323736491,1714224328968,-500.0,0.000429,42]
[323736492,1714224328993,-2347.64028377,0.00042943,30]
[323736493,1714224329018,-192.581771,0.00042953,30]
[323736494,1714224329043,-2347.64028377,0.00042997,30]
[323736495,1714224329066,-31379.36533737,0.00043,30]
[323736496,1714224329090,-300.0,0.00043,17]
[323736497,1714224329115,-275.96106052,0.00043031,30]
[323736498,1714224329139,-192.581771,0.00043044,30]
[323736499,1714224329161,-2411.28280509,0.00043094,30]
[323736500,1714224329184,-2347.64028377,0.0004313,30]
[323736501,1714224329208,-275.96106052,0.00043169,30]
[323736502,1714224329232,-397.57237085,0.00043173,30]